fUST/lending_fUST_20240726
["ID","MTS","AMOUNT","RATE_DAILY","PERIOD"]
[333269113,1722007845282,-1255.77,0.00013698,2]
[333269115,1722007845293,-500.0,0.00013698,2]
[333269117,1722007845304,-1255.77,0.00013698,2]
[333269119,1722007845315,-1255.77,0.00013698,2]
[333269121,1722007845326,-1255.77,0.00013698,2]
[333269123,1722007845337,-1255.77,0.00013698,2]
[333269126,1722007845348,-1255.77,0.00013698,2]
[333269128,1722007845362,-500.0,0.00013698,2]
[333269131,1722007845379,-1255.77,0.00013698,2]
[333269133,1722007845391,-500.0,0.00013698,2]
[333269135,1722007845403,-500.0,0.00013698,2]
[333269138,1722007845416,-500.0,0.00013698,2]
[333269140,1722007845428,-500.0,0.00013698,2]
[333269143,1722007845438,-504.02751053,0.00013698,2]
[333269146,1722007845449,-500.0,0.00013698,2]
[333269149,1722007845461,-506.72,0.00013698,2]
[333269152,1722007845473,-1871.301492,0.00013698,2]
[333269154,1722007845484,-500.0,0.00013698,2]
[333269156,1722007845495,-1871.301492,0.00013698,2]
[333269158,1722007845505,-1871.301492,0.00013698,2]
[333269161,1722007845517,-500.0,0.00013698,2]
[333269163,1722007845528,-500.0,0.00013698,2]
[333269165,1722007845539,-500.0,0.00013698,2]
[333269167,1722007845551,-500.0,0.00013698,2]
[333269169,1722007845564,-500.0,0.00013698,2]
[333269172,1722007845576,-1871.301492,0.00013698,2]
[333269174,1722007845588,-500.0,0.00013698,2]
[333269176,1722007845600,-1871.301492,0.00013698,2]
[333269178,1722007845613,-1871.301492,0.00013698,2]
[333269180,1722007845626,-557.52,0.00013698,2]
[333269182,1722007845638,-1151.47,0.00013698,2]
[333269184,1722007845651,-500.0,0.00013698,2]
[333269186,1722007845663,-500.0,0.00013698,2]
[333269188,1722007845674,-500.0,0.00013698,2]
[333269191,1722007845687,-279.17558441,0.00013698,2]
[333269193,1722007845698,-500.0,0.00013698,2]
[333269195,1722007845709,-462.81857231,0.00013698,2]
[333269197,1722007845719,-500.0,0.00013698,2]
[333269199,1722007845730,-171.59026165,0.00013698,2]
[333269201,1722007845741,-500.0,0.00013698,2]
[333269203,1722007845754,-336.83627734,0.00013698,2]
[333269205,1722007845764,-500.0,0.00013698,2]
[333269207,1722007845776,-500.0,0.00013698,2]
[333269209,1722007845789,-500.0,0.00013698,2]
[333269212,1722007845801,-200.0,0.00013698,2]
[333269214,1722007845813,-564.50357494,0.00013698,2]
[333269216,1722007845826,-500.0,0.00013698,2]
[333269218,1722007845839,-500.0,0.00013698,2]
[333269221,1722007845850,-500.0,0.00013698,2]
[333269222,1722007845864,-500.0,0.00013698,2]
[333269223,1722007845874,-500.0,0.00013698,2]
[333269224,1722007845885,-500.0,0.00013698,2]
[333269225,1722007845894,-500.0,0.00013698,2]
[333269226,1722007845904,-500.0,0.00013698,2]
[333269227,1722007845913,-614.74755836,0.00013698,2]
[333269228,1722007845923,-500.0,0.00013698,2]
[333269229,1722007845933,-500.0,0.00013698,2]
[333269230,1722007845942,-500.0,0.00013698,2]
[333269231,1722007845952,-500.0,0.00013698,2]
[333269232,1722007845961,-500.0,0.00013698,2]
[333269233,1722007845971,-500.0,0.00013698,2]
[333269234,1722007845981,-500.0,0.00013698,2]
[333269235,1722007845991,-500.0,0.00013698,2]
[333269236,1722007846000,-501.99883544,0.00013698,2]
[333269237,1722007846009,-538.94098699,0.00013698,2]
[333269238,1722007846018,-500.0,0.00013698,2]
[333269239,1722007846028,-500.0,0.00013698,2]
[333269240,1722007846037,-500.0,0.00013698,2]
[333269241,1722007846240,-500.0,0.00013698,2]
[333269242,1722007846254,-500.0,0.00013698,2]
[333269243,1722007846264,-500.0,0.00013698,2]
[333269244,1722007846274,-503.0025297,0.00013698,2]
[333269245,1722007846283,-500.0,0.00013698,2]
[333269246,1722007846292,-500.0,0.00013698,2]
[333269247,1722007846301,-600.0,0.00013698,2]
[333269248,1722007846311,-500.0,0.00013698,2]
[333269249,1722007846320,-500.0,0.00013698,2]
[333269250,1722007846330,-500.0,0.00013698,2]
[333269251,1722007846339,-1023.95,0.00013698,2]
[333269252,1722007846349,-500.0,0.00013698,2]
[333269253,1722007846359,-500.0,0.00013698,2]
[333269254,1722007846369,-1663.28,0.00013698,2]
[333269255,1722007846378,-703.08,0.00013698,2]
[333269256,1722007846388,-500.0,0.00013698,2]
[333269257,1722007846398,-500.0,0.00013698,2]
[333269258,1722007846408,-500.0,0.00013698,2]
[333269259,1722007846419,-151.0,0.00013698,2]
[333269260,1722007846428,-151.0,0.00013698,2]
[333269261,1722007846438,-151.0,0.00013698,2]
[333269262,1722007846448,-2711.8861843,0.00013699,2]
[333269263,1722007846458,-199.1129963,0.00013699,2]
[333269264,1722007846468,-500.0,0.00013699,2]
[333269265,1722007846478,-873.97,0.00013699,2]
[333269266,1722007846488,-500.0,0.00013699,2]
[333269267,1722007846498,-1920.37695,0.00013699,2]
[333269268,1722007846507,-1920.37695,0.00013699,2]
[333269269,1722007846517,-151.0,0.00013699,2]
[333269270,1722007846526,-151.0,0.00013699,2]
[333269271,1722007846537,-1255.77,0.00013699,2]
[333269272,1722007846546,-1255.77,0.00013699,2]
[333269273,1722007846556,-1255.77,0.00013699,2]
[333269274,1722007846566,-1255.77,0.00013699,2]
[333269275,1722007846576,-1255.77344478,0.00013699,2]
[333269276,1722007846585,-150.112233,0.000137,2]
[333269277,1722007846595,-24478.7,0.000137,2]
[333269278,1722007846606,-151.0,0.000137,2]
[333269279,1722007846615,-165.871888,0.000137,2]
[333269280,1722007846625,-151.0,0.000137,2]
[333269281,1722007846634,-151.0,0.000137,2]
[333269282,1722007846643,-151.0,0.000137,2]
[333269283,1722007846652,-151.0,0.000137,2]
[333269284,1722007846662,-254.56291,0.000137,2]
[333269285,1722007846671,-371.101598,0.000137,2]
[333269286,1722007846680,-371.101598,0.000137,2]
[333269287,1722007846689,-151.0,0.000137,2]
[333269288,1722007846698,-193.149421,0.000137,2]
[333269289,1722007846707,-193.149421,0.000137,2]
[333269290,1722007846716,-151.0,0.000137,2]
[333269291,1722007846725,-1871.301492,0.000137,2]
[333269292,1722007846735,-1871.301492,0.000137,2]
[333269293,1722007846744,-163.780306,0.00013723,2]
[333269294,1722007846756,-151.0,0.00013723,2]
[333269295,1722007846765,-151.0,0.00013723,2]
[333269296,1722007846775,-465.628527,0.00013723,2]
[333269297,1722007846785,-465.628527,0.00013723,2]
[333269298,1722007846796,-210.768969,0.00013723,2]
[333269299,1722007846805,-210.768969,0.00013723,2]
[333269300,1722007846814,-151.0,0.00013724,2]
[333269301,1722007846823,-163.780306,0.00013724,2]
[333269302,1722007846834,-151.0,0.00013724,2]
[333269303,1722007846844,-151.0,0.00013724,2]
[333269304,1722007846853,-261.73324,0.00013724,2]
[333269305,1722007846863,-165.871888,0.00013724,2]
[333269306,1722007846873,-313.988133,0.00013724,2]
[333269307,1722007846882,-313.988133,0.00013724,2]
[333269309,1722007846891,-156.163564,0.00013724,2]
[333269311,1722007846901,-1605.902627,0.00013724,2]
[333269313,1722007846910,-1605.902627,0.00013724,2]
[333269314,1722007846920,-873.97,0.00013724,2]
[333269315,1722007846931,-873.97,0.00013724,2]
[333269317,1722007846940,-500.0,0.00013724,2]
[333269318,1722007846950,-234.347101,0.00013724,2]
[333269320,1722007846959,-234.347101,0.00013724,2]
[333269322,1722007846969,-151.0,0.00013725,2]
[333269324,1722007846978,-163.780306,0.00013725,2]
[333269326,1722007846987,-151.0,0.00013725,2]
[333269327,1722007846996,-151.0,0.00013725,2]
[333269329,1722007847005,-165.871888,0.00013725,2]
[333269331,1722007847016,-500.0,0.00013733,2]
[333269333,1722007847028,-500.12564731,0.00013733,2]
[333269335,1722007847039,-313.988133,0.00013733,2]
[333269337,1722007847050,-313.988133,0.00013733,2]
[333269339,1722007847061,-873.97,0.00013733,2]
[333269341,1722007847070,-873.97,0.00013733,2]
[333269343,1722007847080,-873.97,0.00013733,2]
[333269344,1722007847090,-1920.37695,0.00013733,2]
[333269345,1722007847100,-1920.37695,0.00013733,2]
[333269346,1722007847111,-151.0,0.00013733,2]
[333269347,1722007847120,-151.0,0.00013733,2]
[333269348,1722007847130,-500.0,0.00013734,2]
[333269349,1722007847140,-151.0,0.00013734,2]
[333269350,1722007847152,-500.0,0.00013734,2]
[333269351,1722007847162,-500.0,0.00013734,2]
[333269352,1722007847171,-500.0,0.00013734,2]
[333269353,1722007847181,-163.780306,0.00013734,2]
[333269354,1722007847190,-151.0,0.00013734,2]
[333269355,1722007847199,-151.0,0.00013734,2]
[333269356,1722007847208,-165.871888,0.00013734,2]
[333269357,1722007847218,-1605.902627,0.00013734,2]
[333269358,1722007847227,-1605.902627,0.00013734,2]
[333269359,1722007847236,-302.242164,0.00013734,2]
[333269360,1722007847246,-151.0,0.00013734,2]
[333269361,1722007847255,-151.0,0.00013734,2]
[333269362,1722007847264,-151.0,0.00013734,2]
[333269363,1722007847273,-251.403132,0.00013734,2]
[333269364,1722007847282,-371.101598,0.00013734,2]
[333269365,1722007847291,-371.101598,0.00013734,2]
[333269366,1722007847301,-215.456253,0.00013734,2]
[333269367,1722007847310,-193.149421,0.00013734,2]
[333269368,1722007847320,-193.149421,0.00013734,2]
[333269369,1722007847331,-500.0,0.00013735,2]
[333269370,1722007847343,-500.0,0.00013735,2]
[333269371,1722007847353,-500.0,0.00013735,2]
[333269372,1722007847364,-154.24,0.00013735,2]
[333269373,1722007847376,-163.780306,0.00013735,2]
[333269374,1722007847385,-151.0,0.00013735,2]
[333269375,1722007847394,-500.0,0.00013745,2]
[333269376,1722007847404,-151.0,0.00013745,2]
[333269377,1722007847413,-151.0,0.00013745,2]
[333269378,1722007847423,-151.0,0.00013745,2]
[333269379,1722007847434,-165.871888,0.00013745,2]
[333269380,1722007847444,-150.112233,0.000139,2]
[333269381,1722007847455,-873.97,0.00013951,2]
[333269382,1722007847464,-873.97,0.00013951,2]
[333269383,1722007847474,-151.0,0.00013952,2]
[333269384,1722007847483,-163.780306,0.00013952,2]
[333269385,1722007847493,-184.069228,0.00013952,2]
[333269386,1722007847503,-165.871888,0.00013952,2]
[333269387,1722007847513,-165.871888,0.00013952,2]
[333269388,1722007847523,-313.988133,0.00013952,2]
[333269389,1722007847533,-313.988133,0.00013952,2]
[333269390,1722007847542,-465.628527,0.00013952,2]
[333269391,1722007847552,-465.628527,0.00013952,2]
[333269392,1722007847561,-210.768969,0.00013952,2]
[333269393,1722007847570,-230.620817,0.00013952,2]
[333269394,1722007847580,-210.768969,0.00013952,2]
[333269395,1722007847589,-1871.301492,0.00013952,2]
[333269396,1722007847599,-1871.301492,0.00013952,2]
[333269397,1722007847611,-150.0,0.00013957,2]
[333269398,1722007847621,-505.0,0.00013957,2]
[333269399,1722007847630,-1409.0,0.00013957,2]
[333269400,1722007847641,-160.0,0.00013958,6]
[333269401,1722007847651,-873.97,0.00013961,2]
[333269402,1722007847660,-873.97,0.00013961,2]
[333269403,1722007847670,-151.0,0.00013962,2]
[333269404,1722007847680,-261.23885,0.00013962,2]
[333269405,1722007847689,-163.780306,0.00013962,2]
[333269406,1722007847698,-165.871888,0.00013962,2]
[333269407,1722007847708,-165.871888,0.00013962,2]
[333269408,1722007847717,-1920.37695,0.00013962,2]
[333269409,1722007847727,-1920.37695,0.00013962,2]
[333269410,1722007847739,-151.0,0.00013962,2]
[333269411,1722007847752,-151.0,0.00013962,2]
[333269412,1722007847761,-234.347101,0.00013962,2]
[333269413,1722007847771,-234.347101,0.00013962,2]
[333269414,1722007847780,-873.97,0.00013971,2]
[333269415,1722007847790,-873.97,0.00013971,2]
[333269416,1722007847802,-873.97,0.00013971,2]
[333269417,1722007847812,-873.97,0.00013971,2]
[333269418,1722007847822,-151.0,0.00013972,2]
[333269419,1722007847833,-151.0,0.00013972,2]
[333269420,1722007847843,-151.0,0.00013972,2]
[333269421,1722007847853,-151.0,0.00013972,2]
[333269422,1722007847868,-500.0,0.00013972,2]
[333269423,1722007847878,-500.0,0.00013972,2]
[333269424,1722007847889,-500.0,0.00013972,2]
[333269425,1722007847899,-509.94,0.00013972,2]
[333269426,1722007847908,-500.0,0.00013972,2]
[333269427,1722007847918,-190.807489,0.00013972,2]
[333269428,1722007847928,-500.0,0.00013972,2]
[333269429,1722007847938,-190.807489,0.00013972,2]
[333269430,1722007847947,-500.0,0.00013972,2]
[333269431,1722007847957,-500.0,0.00013972,2]
[333269432,1722007847967,-163.780306,0.00013972,2]
[333269433,1722007847977,-163.780306,0.00013972,2]
[333269434,1722007847986,-500.0,0.00013972,2]
[333269435,1722007847996,-500.0,0.00013972,2]
[333269436,1722007848005,-500.0,0.00013972,2]
[333269437,1722007848014,-500.0,0.00013972,2]
[333269438,1722007848024,-500.0,0.00013972,2]
[333269439,1722007848033,-500.0,0.00013972,2]
[333269440,1722007848043,-165.871888,0.00013972,2]
[333269441,1722007848052,-500.0,0.00013972,2]
[333269442,1722007848062,-165.871888,0.00013972,2]
[333269443,1722007848071,-500.0,0.00013972,2]
[333269444,1722007848080,-500.0,0.00013972,2]
[333269445,1722007848090,-532.72,0.00013972,2]
[333269446,1722007848099,-500.0,0.00013972,2]
[333269447,1722007848110,-500.0,0.00013972,2]
[333269448,1722007848119,-500.0,0.00013972,2]
[333269449,1722007848129,-500.0,0.00013972,2]
[333269450,1722007848139,-862.98,0.00013972,2]
[333269451,1722007848148,-500.0,0.00013972,2]
[333269452,1722007848158,-500.0,0.00013972,2]
[333269453,1722007848168,-500.0,0.00013972,2]
[333269454,1722007848177,-500.0,0.00013972,2]
[333269455,1722007848187,-529.89664249,0.00013972,2]
[333269456,1722007848197,-500.0,0.00013972,2]
[333269457,1722007848206,-500.0,0.00013972,2]
[333269458,1722007848216,-503.54419415,0.00013972,2]
[333269459,1722007848225,-500.0,0.00013972,2]
[333269460,1722007848234,-502.46244571,0.00013972,2]
[333269461,1722007848244,-500.0,0.00013972,2]
[333269462,1722007848255,-500.0,0.00013972,2]
[333269463,1722007848265,-510.83707425,0.00013972,2]
[333269464,1722007848275,-508.22712239,0.00013972,2]
[333269465,1722007848285,-313.988133,0.00013972,2]
[333269466,1722007848295,-313.988133,0.00013972,2]
[333269467,1722007848305,-313.988133,0.00013972,2]
[333269468,1722007848315,-313.988133,0.00013972,2]
[333269469,1722007848324,-500.0,0.00013972,2]
[333269470,1722007848334,-851.78,0.00013972,2]
[333269471,1722007848344,-527.25,0.00013972,2]
[333269472,1722007848354,-464.43614291,0.00013972,2]
[333269473,1722007848368,-500.0,0.00013972,2]
[333269474,1722007848378,-500.0,0.00013972,2]
[333269475,1722007848391,-500.0,0.00013972,2]
[333269476,1722007848401,-500.0,0.00013972,2]
[333269477,1722007848411,-749.62,0.00013972,2]
[333269478,1722007848420,-510.54800537,0.00013972,2]
[333269479,1722007848430,-500.0,0.00013972,2]
[333269480,1722007848439,-500.0,0.00013972,2]
[333269481,1722007848449,-508.30205105,0.00013972,2]
[333269482,1722007848459,-500.0,0.00013972,2]
[333269483,1722007848469,-500.0,0.00013972,2]
[333269484,1722007848479,-500.0,0.00013972,2]
[333269485,1722007848489,-500.0,0.00013972,2]
[333269486,1722007848498,-667.76,0.00013972,2]
[333269487,1722007848508,-679.4,0.00013972,2]
[333269488,1722007848519,-500.0,0.00013972,2]
[333269489,1722007848529,-500.0,0.00013972,2]
[333269490,1722007848540,-730.3,0.00013972,2]
[333269491,1722007848550,-151.0,0.00013972,2]
[333269492,1722007848560,-500.0,0.00013972,2]
[333269493,1722007848571,-151.0,0.00013972,2]
[333269494,1722007848581,-230.26528,0.00013972,2]
[333269495,1722007848591,-467.54867267,0.00013972,2]
[333269496,1722007848600,-500.0,0.00013972,2]
[333269497,1722007848612,-928.36,0.00013972,2]
[333269498,1722007848623,-580.06,0.00013972,2]
[333269499,1722007848633,-500.0,0.00013972,2]
[333269500,1722007848642,-500.0,0.00013972,2]
[333269501,1722007848652,-504.23758031,0.00013972,2]
[333269502,1722007848662,-500.0,0.00013972,2]
[333269503,1722007848671,-500.0,0.00013972,2]
[333269504,1722007848681,-500.0,0.00013972,2]
[333269505,1722007848691,-500.0,0.00013972,2]
[333269506,1722007848700,-500.0,0.00013972,2]
[333269507,1722007848710,-500.0,0.00013972,2]
[333269508,1722007848719,-823.45,0.00013972,2]
[333269509,1722007848729,-500.0,0.00013972,2]
[333269510,1722007848739,-500.0,0.00013972,2]
[333269511,1722007848751,-500.0,0.00013972,2]
[333269512,1722007848763,-445.50083456,0.00013972,2]
[333269513,1722007848773,-283.02751079,0.00013972,2]
[333269514,1722007849717,-151.0,0.00013698,2]
[333269515,1722007849726,-151.0,0.00013698,2]
[333269516,1722007849737,-151.0,0.000137,2]
[333269517,1722007849749,-27.15852029,0.00013952,2]
[333269518,1722007849764,-123.84147971,0.00013952,2]
[333269519,1722007849774,-223.19045492,0.00013972,2]
[333269520,1722007853153,273.37336231,9.9e-05,2]
[333269521,1722007861839,273.37336231,9.9e-05,2]
[333269522,1722007885085,396.32013512,9.999e-05,2]
[333269523,1722007888912,200.0,0.0001,2]
[333269524,1722007888970,316.72102585,0.0001137,2]
[333269525,1722007906718,528.05625592,0.00012,2]
[333269526,1722007906739,190.4105277,0.00012,2]
[333269527,1722007914489,154.71377951,9.999e-05,4]
[333269528,1722007922094,2145.57001272,0.00012,2]
[333269529,1722008019495,154.71377951,9.999e-05,4]
[333269530,1722008125530,154.71377951,9.999e-05,4]
[333269531,1722008167156,150.71364408,0.00017595,120]
[333269532,1722008220501,165.1724323,9.999e-05,4]
[333269534,1722008699375,150.69860279,0.00017655,120]
[333269535,1722008745153,-288.33967103,9.998e-05,2]
[333269536,1722008952136,-178.0,9.997e-05,2]
[333269537,1722008952158,-218.00151768,9.998e-05,2]
[333269538,1722008952178,-13058.56963942,9.998e-05,2]
[333269539,1722008952206,-4709.09482938,9.998e-05,2]
[333269540,1722008952227,-282.25280295,9.998e-05,2]
[333269541,1722008952248,-2107.28053433,9.998e-05,2]
[333269542,1722008952268,-164.24967346,9.998e-05,2]
[333269543,1722008952289,-1480.73851933,9.998e-05,2]
[333269544,1722008952309,-3782.59755445,9.998e-05,2]
[333269545,1722008952330,-161.26237391,9.998e-05,2]
[333269546,1722008952363,-398.36350084,9.999e-05,2]
[333269547,1722008952389,-793.88982365,9.999e-05,2]
[333269548,1722008952414,-200.0,0.0001,2]
[333269549,1722008952438,-24579.4938884,0.0001069,2]
[333269550,1722008952466,-166.666666,0.00010959,2]
[333269551,1722008952487,-166.666666,0.00011239,2]
[333269552,1722008952509,-400.0,0.0001137,2]
[333269553,1722008952530,-166.666666,0.00011519,2]
[333269554,1722008952551,-166.666666,0.00011799,2]
[333269555,1722008952573,-166.666666,0.00012079,2]
[333269556,1722008952594,-166.666666,0.00012359,2]
[333269557,1722008965876,166.666666,0.00011731,2]
[333269558,1722008966282,166.666666,0.00012051,2]
[333269559,1722008966619,166.666666,0.00012371,2]
[333269561,1722009009483,200.0,0.0001,2]
[333269562,1722009009537,400.0,0.0001137,2]
[333269575,1722009031811,-166.666666,0.00012691,2]
[333269576,1722009031820,-156.4968617,0.000128,2]
[333269577,1722009031830,-156.49686169,0.0001285,2]
[333269578,1722009031839,-1088.83626911,0.000129,2]
[333269621,1722009037872,-139036.84425606,0.000129,2]
[333269622,1722009037883,-6275.0,0.000129,2]
[333269623,1722009037893,-156.49686169,0.000129,2]
[333269624,1722009037904,-2159.15113641,0.000129,2]
[333269625,1722009037914,-2159.15113637,0.00012936,2]
[333269626,1722009037925,-187449.2409411,0.00013,2]
[333269627,1722009037935,-150.112233,0.00013,2]
[333269628,1722009037946,-7526.2952353,0.00013,2]
[333269629,1722009037956,-1001.679447,0.00013,2]
[333269630,1722009037966,-1001.679447,0.00013,2]
[333269631,1722009037976,-151.0,0.00013,2]
[333269632,1722009037986,-151.0,0.00013,2]
[333269633,1722009037995,-151.0,0.00013,2]
[333269634,1722009038005,-151.0,0.00013,2]
[333269635,1722009038014,-151.0,0.00013,2]
[333269636,1722009038024,-780.262009,0.00013,2]
[333269637,1722009038034,-780.262009,0.00013,2]
[333269638,1722009038043,-151.0,0.00013,2]
[333269639,1722009038053,-151.0,0.00013,2]
[333269640,1722009038062,-1314.922102,0.00013,2]
[333269641,1722009038072,-1314.922102,0.00013,2]
[333269642,1722009038082,-352.117822,0.00013,2]
[333269643,1722009038091,-352.117822,0.00013,2]
[333269644,1722009038100,-264.645287,0.00013,2]
[333269645,1722009038110,-264.645287,0.00013,2]
[333269646,1722009038121,-151.0,0.00013,2]
[333269647,1722009038131,-593.762557,0.00013,2]
[333269648,1722009038145,-272.992742,0.00013,2]
[333269649,1722009038157,-593.762557,0.00013,2]
[333269650,1722009038167,-272.992742,0.00013,2]
[333269651,1722009038179,-166.666666,0.00013011,2]
[333269652,1722009038189,-50000.0,0.000131,2]
[333269653,1722009038199,-151.0,0.000131,2]
[333269654,1722009038208,-151.0,0.000131,2]
[333269655,1722009038223,-151.0,0.000131,2]
[333269656,1722009038234,-151.0,0.000131,2]
[333269657,1722009038244,-151.0,0.000131,2]
[333269658,1722009038255,-500.0,0.00013103,2]
[333269659,1722009038265,-404.21044793,0.00013147,2]
[333269660,1722009038275,-150.112233,0.000133,2]
[333269661,1722009038286,-166.666666,0.0001333,2]
[333269662,1722009038297,-50000.0,0.000134,2]
[333269663,1722009038307,-1001.679447,0.000134,2]
[333269664,1722009038318,-1001.679447,0.000134,2]
[333269665,1722009038329,-151.0,0.000134,2]
[333269666,1722009038339,-151.0,0.000134,2]
[333269667,1722009038350,-151.0,0.000134,2]
[333269668,1722009038361,-151.0,0.000134,2]
[333269669,1722009038373,-151.0,0.000134,2]
[333269670,1722009038383,-780.262009,0.000134,2]
[333269671,1722009038393,-780.262009,0.000134,2]
[333269672,1722009038402,-1314.922102,0.000134,2]
[333269673,1722009038411,-1314.922102,0.000134,2]
[333269674,1722009038422,-352.117822,0.000134,2]
[333269675,1722009038431,-352.117822,0.000134,2]
[333269676,1722009038441,-264.645287,0.000134,2]
[333269677,1722009038450,-264.645287,0.000134,2]
[333269678,1722009038460,-151.0,0.000134,2]
[333269679,1722009038469,-593.762557,0.000134,2]
[333269680,1722009038479,-272.992742,0.000134,2]
[333269681,1722009038488,-593.762557,0.000134,2]
[333269682,1722009038498,-272.992742,0.000134,2]
[333269683,1722009038508,-532.143422,0.00013425,2]
[333269684,1722009038517,-532.143422,0.00013425,2]
[333269685,1722009038527,-532.143422,0.00013425,2]
[333269686,1722009038537,-532.143422,0.00013425,2]
[333269687,1722009038546,-165.524908,0.00013425,2]
[333269688,1722009038555,-211.6150715,0.00013485,2]
[333269689,1722009038565,-152.236607,0.00013688,2]
[333269690,1722009038574,-157.204566,0.00013688,2]
[333269691,1722009038583,-157.204566,0.00013688,2]
[333269692,1722009038593,-503.61433218,0.00013698,2]
[333269693,1722009038602,-2323.04,0.00013698,2]
[333269694,1722009038613,-2323.04,0.00013698,2]
[333269695,1722009038624,-2323.04,0.00013698,2]
[333269696,1722009038634,-2323.04,0.00013698,2]
[333269697,1722009038643,-2323.04,0.00013698,2]
[333269698,1722009038653,-2323.04,0.00013698,2]
[333269699,1722009038663,-2323.04,0.00013698,2]
[333269700,1722009038673,-2323.04,0.00013698,2]
[333269701,1722009038683,-2323.04,0.00013698,2]
[333269702,1722009038694,-2323.04,0.00013698,2]
[333269703,1722009038705,-2323.04,0.00013698,2]
[333269704,1722009038716,-2323.04,0.00013698,2]
[333269705,1722009038728,-2323.04,0.00013698,2]
[333269706,1722009038739,-2323.04,0.00013698,2]
[333269707,1722009038749,-2323.04,0.00013698,2]
[333269708,1722009038758,-2323.04,0.00013698,2]
[333269709,1722009038768,-2323.04,0.00013698,2]
[333269710,1722009038778,-2323.04,0.00013698,2]
[333269711,1722009038789,-2323.04,0.00013698,2]
[333269712,1722009038799,-2323.04,0.00013698,2]
[333269713,1722009038808,-2323.04,0.00013698,2]
[333269714,1722009038817,-2323.04,0.00013698,2]
[333269715,1722009038827,-2323.04,0.00013698,2]
[333269716,1722009038837,-2323.06226985,0.00013698,2]
[333269717,1722009038847,-407.67029083,0.00013698,2]
[333269718,1722009038857,-507.20628239,0.00013698,2]
[333269719,1722009038868,-2876.46722793,0.00013698,2]
[333269720,1722009038879,-500.55348274,0.00013698,2]
[333269721,1722009038889,-517.330174,0.00013698,2]
[333269722,1722009038899,-559.81704241,0.00013698,2]
[333269723,1722009038910,-515.03251969,0.00013698,2]
[333269724,1722009038923,-500.0,0.00013698,2]
[333269725,1722009038937,-500.0,0.00013698,2]
[333269726,1722009038949,-500.0,0.00013698,2]
[333269727,1722009038959,-500.0,0.00013698,2]
[333269728,1722009038969,-500.0,0.00013698,2]
[333269729,1722009038979,-500.0,0.00013698,2]
[333269730,1722009038989,-500.0,0.00013698,2]
[333269731,1722009038999,-500.0,0.00013698,2]
[333269732,1722009039010,-500.0,0.00013698,2]
[333269733,1722009039021,-500.0,0.00013698,2]
[333269734,1722009039033,-500.0,0.00013698,2]
[333269735,1722009039043,-442.72154942,0.00013698,2]
[333269736,1722009039052,-502.76179262,0.00013698,2]
[333269737,1722009039061,-500.0,0.00013698,2]
[333269738,1722009039072,-500.0,0.00013698,2]
[333269739,1722009039082,-640.54637123,0.00013698,2]
[333269740,1722009039094,-504.00163031,0.00013698,2]
[333269741,1722009039106,-500.0,0.00013698,2]
[333269742,1722009039119,-550.54050196,0.00013698,2]
[333269743,1722009039129,-500.0,0.00013698,2]
[333269744,1722009039143,-500.0,0.00013698,2]